fUSD/lending_fUSD_20260605
["ID","MTS","AMOUNT","RATE_DAILY","PERIOD"]
[424220381,1780671068000,-535.40148659,0.00034903,2]
[424220378,1780671068000,-3206.51250246,0.00034903,2]
[424220371,1780671068000,-493.96494702,0.00034903,2]
[424220406,1780671068000,-310.41093008,0.00034903,2]
[424220465,1780671068000,-500.0,0.00035,60]
[424220410,1780671068000,-595.52105001,0.00034903,2]
[424220437,1780671068000,-350.0,0.00034943,37]
[424220439,1780671068000,-1000.0,0.0003497,2]
[424220441,1780671068000,-405.31,0.00034981,120]
[424220440,1780671068000,-278.65,0.00034981,120]
[424220446,1780671068000,-150.0,0.00035,120]
[424220445,1780671068000,-2000.0,0.00034999,2]
[424220454,1780671068000,-1396.25819,0.00035,120]
[424220457,1780671068000,-227.85863865,0.00035,120]
[424220456,1780671068000,-2917.07367689,0.00035,120]
[424220455,1780671068000,-43068.71701735,0.00035,5]
[424220451,1780671068000,-250.03430179,0.00035,4]
[424220447,1780671068000,-150.0,0.00035,120]
[424220448,1780671068000,-196.90436046,0.00035,120]
[424220442,1780671068000,-500.0,0.0003499,30]
[424220450,1780671068000,-3455.64499375,0.00035,5]
[424220449,1780671068000,-1300.0,0.00035,60]
[424220458,1780671068000,-2798.94822387,0.00035,10]
[424220460,1780671068000,-76696.01955962,0.00035,2]
[424220461,1780671068000,-509.17631543,0.00035,120]
[424220463,1780671068000,-500.0,0.00035,60]
[424220467,1780671068000,-430.3749138,0.00035,120]
[424220466,1780671068000,-35064.63125658,0.00035,4]
[424220462,1780671068000,-1072.43361593,0.00035,7]
[424220468,1780671068000,-320.66968773,0.00035,120]
[424220464,1780671068000,-40547.22889658,0.00035,2]
[424220459,1780671068000,-526.0,0.00035,5]
[424220469,1780671068000,-311.41773744,0.00035,120]
[424220415,1780671068000,-300.0,0.00034903,2]
[424220453,1780671068000,-333.74832914,0.00035,30]
[424220438,1780671068000,-500.0,0.0003497,2]
[424220452,1780671068000,-570.0,0.00035,7]
[424220443,1780671068000,-405.31,0.0003499,120]
[424220435,1780671068000,-791.896713,0.00034912,60]
[424220418,1780671068000,-730.559974,0.00034912,60]
[424220407,1780671068000,-521.28788952,0.00034903,2]
[424220414,1780671068000,-300.0,0.00034903,2]
[424220412,1780671068000,-300.0,0.00034903,2]
[424220409,1780671068000,-1637.97013637,0.00034903,2]
[424220417,1780671068000,-8091.0425,0.00034908,2]
[424220413,1780671068000,-512.60852236,0.00034903,2]
[424220411,1780671068000,-300.0,0.00034903,2]
[424220408,1780671068000,-300.0,0.00034903,2]
[424220420,1780671068000,-500.0,0.00034912,60]
[424220431,1780671068000,-500.0,0.00034912,60]
[424220430,1780671068000,-500.0,0.00034912,60]
[424220419,1780671068000,-976.7556371,0.00034912,60]
[424220416,1780671068000,-2034.1885,0.00034908,2]
[424220436,1780671068000,-1274.94,0.00034923,120]
[424220422,1780671068000,-152.4350226,0.00034912,60]
[424220444,1780671068000,-614.0,0.00034994,10]
[424220433,1780671068000,-500.0,0.00034912,60]
[424220432,1780671068000,-890.4991091,0.00034912,60]
[424220428,1780671068000,-780.8132809,0.00034912,60]
[424220426,1780671068000,-500.0,0.00034912,60]
[424220434,1780671068000,-500.0,0.00034912,60]
[424220425,1780671068000,-163.5704503,0.00034912,60]
[424220424,1780671068000,-928.2410471,0.00034912,60]
[424220429,1780671068000,-554.4033122,0.00034912,60]
[424220423,1780671068000,-354.258427,0.00034912,60]
[424220421,1780671068000,-892.8568119,0.00034912,60]
[424220427,1780671068000,-500.0,0.00034912,60]
[424220519,1780671069000,-500.0,0.00035106,2]
[424220522,1780671069000,-657.73,0.00035106,2]
[424220521,1780671069000,-910.84,0.00035106,2]
[424220509,1780671069000,-250.0,0.00035,120]
[424220520,1780671069000,-500.0,0.00035106,2]
[424220518,1780671069000,-500.0,0.00035106,2]
[424220501,1780671069000,-200.0,0.00035,120]
[424220507,1780671069000,-2000.0,0.00035,7]
[424220506,1780671069000,-190.84078346,0.00035,120]
[424220504,1780671069000,-2000.0,0.00035,3]
[424220503,1780671069000,-1915.43646842,0.00035,2]
[424220515,1780671069000,-8091.0425,0.00035033,2]
[424220502,1780671069000,-2110.0,0.00035,2]
[424220508,1780671069000,-659.14,0.00035,30]
[424220511,1780671069000,-1579.87382093,0.00035,14]
[424220523,1780671069000,-369.46,0.00035106,2]
[424220517,1780671069000,-2034.1885,0.00035083,2]
[424220510,1780671069000,-250.0,0.00035,120]
[424220514,1780671069000,-208.84,0.0003503,30]
[424220513,1780671069000,-600.0,0.00035,2]
[424220516,1780671069000,-362.25663155,0.00035068,2]
[424220525,1780671069000,-500.0,0.00035106,2]
[424220524,1780671069000,-554.85,0.00035106,2]
[424220534,1780671069000,-405.31,0.00035124,120]
[424220535,1780671069000,-405.31,0.00035124,120]
[424220533,1780671069000,-1592.0,0.0003512,11]
[424220526,1780671069000,-500.0,0.00035106,2]
[424220529,1780671069000,-500.0,0.00035106,2]
[424220528,1780671069000,-500.0,0.00035106,2]
[424220512,1780671069000,-1000.0,0.00035,2]
[424220500,1780671069000,-1973.79716009,0.00035,2]
[424220472,1780671069000,-1451.60412161,0.00035,120]
[424220505,1780671069000,-1677.27345097,0.00035,2]
[424220470,1780671069000,-515.14960472,0.00035,120]
[424220479,1780671069000,-323.74083089,0.00035,120]
[424220480,1780671069000,-1492.94465785,0.00035,120]
[424220471,1780671069000,-306.50544473,0.00035,120]
[424220473,1780671069000,-1910.38886028,0.00035,120]
[424220532,1780671069000,-636.64,0.00035106,2]
[424220474,1780671069000,-433.47194799,0.00035,120]
[424220481,1780671069000,-1380.87818188,0.00035,120]
[424220483,1780671069000,-278.51312383,0.00035,120]
[424220482,1780671069000,-240.54220588,0.00035,120]
[424220475,1780671069000,-205.23463841,0.00035,120]
[424220477,1780671069000,-820.72142025,0.00035,120]
[424220476,1780671069000,-890.90734959,0.00035,120]
[424220478,1780671069000,-441.83431517,0.00035,120]
[424220484,1780671069000,-860.34177745,0.00035,120]
[424220486,1780671069000,-266.02175358,0.00035,120]
[424220487,1780671069000,-1327.85688603,0.00035,120]
[424220490,1780671069000,-212.93998,0.00035,13]
[424220488,1780671069000,-353.22116195,0.00035,120]
[424220489,1780671069000,-334.109899,0.00035,13]
[424220485,1780671069000,-579.65091334,0.00035,120]
[424220491,1780671069000,-247.27711029,0.00035,60]
[424220495,1780671069000,-432.95,0.00035,5]
[424220492,1780671069000,-1239.18,0.00035,30]
[424220494,1780671069000,-432.95,0.00035,2]
[424220496,1780671069000,-425.515367,0.00035,13]
[424220493,1780671069000,-432.95,0.00035,7]
[424220499,1780671069000,-1973.79716009,0.00035,2]
[424220498,1780671069000,-246.75,0.00035,2]
[424220497,1780671069000,-209.776382,0.00035,13]
[424220531,1780671069000,-753.02,0.00035106,2]
[424220598,1780671069000,-200.0,0.00035307,2]
[424220527,1780671069000,-500.0,0.00035106,2]
[424220568,1780671069000,-200.0,0.00035307,2]
[424220567,1780671069000,-200.0,0.00035307,2]
[424220571,1780671069000,-200.0,0.00035307,2]
[424220569,1780671069000,-200.0,0.00035307,2]
[424220572,1780671069000,-200.0,0.00035307,2]
[424220570,1780671069000,-200.0,0.00035307,2]
[424220573,1780671069000,-200.0,0.00035307,2]
[424220577,1780671069000,-200.0,0.00035307,2]
[424220576,1780671069000,-200.0,0.00035307,2]
[424220579,1780671069000,-200.0,0.00035307,2]
[424220578,1780671069000,-200.0,0.00035307,2]
[424220580,1780671069000,-200.0,0.00035307,2]
[424220585,1780671069000,-500.0,0.00035307,2]
[424220582,1780671069000,-500.0,0.00035307,2]
[424220586,1780671069000,-200.0,0.00035307,2]
[424220581,1780671069000,-500.0,0.00035307,2]
[424220584,1780671069000,-200.0,0.00035307,2]
[424220587,1780671069000,-200.0,0.00035307,2]
[424220583,1780671069000,-200.0,0.00035307,2]
[424220588,1780671069000,-200.0,0.00035307,2]
[424220590,1780671069000,-200.0,0.00035307,2]
[424220595,1780671069000,-200.0,0.00035307,2]
[424220596,1780671069000,-200.0,0.00035307,2]
[424220597,1780671069000,-200.0,0.00035307,2]
[424220593,1780671069000,-200.0,0.00035307,2]
[424220591,1780671069000,-200.0,0.00035307,2]
[424220589,1780671069000,-200.0,0.00035307,2]
[424220592,1780671069000,-200.0,0.00035307,2]
[424220530,1780671069000,-500.0,0.00035106,2]
[424220565,1780671069000,-160.0,0.00035307,2]
[424220566,1780671069000,-200.0,0.00035307,2]
[424220594,1780671069000,-200.0,0.00035307,2]
[424220563,1780671069000,-200.0,0.00035307,2]
[424220575,1780671069000,-200.0,0.00035307,2]
[424220547,1780671069000,-2468.98099067,0.00035249,2]
[424220537,1780671069000,-525.0,0.00035147,10]
[424220536,1780671069000,-350.0,0.00035133,4]
[424220548,1780671069000,-2132.22477968,0.00035249,2]
[424220538,1780671069000,-8091.0425,0.00035158,2]
[424220540,1780671069000,-190.903414,0.000352,13]
[424220542,1780671069000,-2261.268562,0.00035221,2]
[424220544,1780671069000,-1255.34401006,0.00035249,2]
[424220543,1780671069000,-1592.0,0.00035224,11]
[424220546,1780671069000,-1285.80905085,0.00035249,2]
[424220541,1780671069000,-64025.64113899,0.00035219,15]
[424220545,1780671069000,-1949.44271499,0.00035249,2]
[424220550,1780671069000,-2260.3725286,0.00035249,2]
[424220539,1780671069000,-200.20342407,0.0003519,10]
[424220560,1780671069000,-200.0,0.00035307,2]
[424220561,1780671069000,-200.0,0.00035307,2]
[424220564,1780671069000,-200.0,0.00035307,2]
[424220559,1780671069000,-200.0,0.00035307,2]
[424220574,1780671069000,-200.0,0.00035307,2]
[424220557,1780671069000,-169.0,0.00035307,2]
[424220555,1780671069000,-200.0,0.00035307,2]
[424220554,1780671069000,-350.0,0.00035303,6]
[424220558,1780671069000,-200.0,0.00035307,2]
[424220556,1780671069000,-200.0,0.00035307,2]
[424220552,1780671069000,-2034.1885,0.00035257,2]
[424220551,1780671069000,-350.0,0.00035255,4]
[424220549,1780671069000,-1213.80511145,0.00035249,2]
[424220562,1780671069000,-200.0,0.00035307,2]
[424220553,1780671069000,-8091.0425,0.00035282,2]
[424220625,1780671070000,-463.0,0.00035373,30]
[424220624,1780671070000,-3475.0,0.00035373,30]
[424220620,1780671070000,-300.0,0.00035349,38]
[424220626,1780671070000,-704.0,0.00035373,30]
[424220633,1780671070000,-2034.1885,0.00035432,2]
[424220632,1780671070000,-8091.0425,0.00035407,2]
[424220634,1780671070000,-396.01,0.0003544,2]
[424220630,1780671070000,-461.0,0.00035382,30]
[424220631,1780671070000,-235.735418,0.000354,14]
[424220629,1780671070000,-1918.0,0.00035382,30]
[424220648,1780671070000,-2221.0,0.00035538,30]
[424220635,1780671070000,-958.08,0.00035452,30]
[424220628,1780671070000,-917.0,0.00035382,30]
[424220637,1780671070000,-208.84,0.0003546,69]
[424220638,1780671070000,-177.94557612,0.00035473,7]
[424220639,1780671070000,-177.94557611,0.00035473,14]
[424220640,1780671070000,-350.0,0.00035498,6]
[424220652,1780671070000,-200.0,0.00035577,5]
[424220649,1780671070000,-211.4786544,0.00035557,2]
[424220622,1780671070000,-910.0,0.00035373,30]
[424220651,1780671070000,-200.0,0.00035576,5]
[424220636,1780671070000,-1939.0,0.00035458,120]
[424220619,1780671070000,-150.0,0.00035343,10]
[424220608,1780671070000,-200.0,0.00035307,2]
[424220627,1780671070000,-3786.0,0.00035373,30]
[424220650,1780671070000,-200.0,0.00035576,5]
[424220600,1780671070000,-200.0,0.00035307,2]
[424220601,1780671070000,-200.0,0.00035307,2]
[424220599,1780671070000,-200.0,0.00035307,2]
[424220602,1780671070000,-200.0,0.00035307,2]
[424220604,1780671070000,-200.0,0.00035307,2]
[424220606,1780671070000,-200.0,0.00035307,2]
[424220603,1780671070000,-200.0,0.00035307,2]
[424220605,1780671070000,-200.0,0.00035307,2]
[424220607,1780671070000,-200.0,0.00035307,2]
[424220609,1780671070000,-200.0,0.00035307,2]
[424220614,1780671070000,-500.0,0.00035307,2]
[424220611,1780671070000,-200.0,0.00035307,2]
[424220610,1780671070000,-200.0,0.00035307,2]
[424220612,1780671070000,-200.0,0.00035307,2]
[424220613,1780671070000,-200.0,0.00035307,2]
[424220623,1780671070000,-535.0,0.00035373,30]
[424220616,1780671070000,-500.0,0.00035307,2]
[424220617,1780671070000,-541.0,0.00035307,2]
[424220615,1780671070000,-500.0,0.00035307,2]
[424220618,1780671070000,-300.0,0.00035343,14]
[424220621,1780671070000,-12898.39,0.00035353,30]
[424220641,1780671070000,-16992.64812045,0.000355,30]
[424220662,1780671070000,-4520.46810798,0.0003561,2]
[424220642,1780671070000,-2112.52,0.000355,2]
[424220676,1780671070000,-660.71282141,0.00035616,7]
[424220674,1780671070000,-660.71282141,0.00035616,7]
[424220678,1780671070000,-660.71282141,0.00035616,7]
[424220689,1780671070000,-660.71282141,0.00035616,7]
[424220682,1780671070000,-660.71282141,0.00035616,7]
[424220685,1780671070000,-660.71282141,0.00035616,7]
[424220687,1780671070000,-660.71282141,0.00035616,7]
[424220684,1780671070000,-660.71282141,0.00035616,7]
[424220677,1780671070000,-660.71282141,0.00035616,7]
[424220683,1780671070000,-660.71282141,0.00035616,7]
[424220672,1780671070000,-660.71282141,0.00035616,7]
[424220679,1780671070000,-660.71282141,0.00035616,7]
[424220680,1780671070000,-660.71282141,0.00035616,7]
[424220643,1780671070000,-8091.0425,0.00035532,2]
[424220688,1780671070000,-660.71282141,0.00035616,7]
[424220691,1780671070000,-660.71282141,0.00035616,7]
[424220696,1780671070000,-660.71282141,0.00035616,7]
[424220692,1780671070000,-660.71282141,0.00035616,7]
[424220690,1780671070000,-660.71282141,0.00035616,7]
[424220695,1780671070000,-660.71282141,0.00035616,7]
[424220693,1780671070000,-660.71282141,0.00035616,7]
[424220694,1780671070000,-660.71282141,0.00035616,7]
[424220686,1780671070000,-660.71282141,0.00035616,7]
[424220673,1780671070000,-660.71282141,0.00035616,7]
[424220681,1780671070000,-660.71282141,0.00035616,7]
[424220668,1780671070000,-1000.0,0.00035616,120]
[424220669,1780671070000,-660.71282141,0.00035616,7]
[424220647,1780671070000,-1604.0,0.00035538,30]
[424220644,1780671070000,-382.0,0.00035538,30]
[424220645,1780671070000,-717.0,0.00035538,30]
[424220646,1780671070000,-684.0,0.00035538,30]
[424220657,1780671070000,-1767.5,0.00035589,120]
[424220656,1780671070000,-764.0,0.00035586,3]
[424220655,1780671070000,-200.0,0.00035578,5]
[424220653,1780671070000,-200.0,0.00035577,5]
[424220660,1780671070000,-200.0,0.00035604,5]
[424220658,1780671070000,-1767.5,0.00035589,120]
[424220654,1780671070000,-200.0,0.00035577,5]
[424220659,1780671070000,-1238.54510551,0.00035589,120]
[424220661,1780671070000,-2034.1885,0.00035606,2]
[424220663,1780671070000,-107925.3648907,0.0003561,2]
[424220665,1780671070000,-150.0,0.00035616,120]
[424220667,1780671070000,-204.0,0.00035616,120]
[424220666,1780671070000,-1000.0,0.00035616,120]
[424220675,1780671070000,-660.71282141,0.00035616,7]
[424220670,1780671070000,-660.71282141,0.00035616,7]
[424220664,1780671070000,-2000.0,0.00035616,30]
[424220671,1780671070000,-660.71282141,0.00035616,7]
[424220714,1780671071000,-660.71282141,0.00035616,7]
[424220715,1780671071000,-660.71282141,0.00035616,7]
[424220716,1780671071000,-660.71282141,0.00035616,7]
[424220724,1780671071000,-645.61081407,0.00035616,7]
[424220718,1780671071000,-660.71282141,0.00035616,7]
[424220723,1780671071000,-645.61081407,0.00035616,7]
[424220720,1780671071000,-660.71282141,0.00035616,7]
[424220717,1780671071000,-660.71282141,0.00035616,7]
[424220722,1780671071000,-660.71282141,0.00035616,7]
[424220725,1780671071000,-645.61081407,0.00035616,7]
[424220719,1780671071000,-660.71282141,0.00035616,7]
[424220705,1780671071000,-660.71282141,0.00035616,7]
[424220727,1780671071000,-645.61081407,0.00035616,7]
[424220721,1780671071000,-660.71282141,0.00035616,7]
[424220708,1780671071000,-660.71282141,0.00035616,7]
[424220710,1780671071000,-660.71282141,0.00035616,7]
[424220703,1780671071000,-660.71282141,0.00035616,7]
[424220706,1780671071000,-660.71282141,0.00035616,7]
[424220704,1780671071000,-660.71282141,0.00035616,7]
[424220707,1780671071000,-660.71282141,0.00035616,7]
[424220702,1780671071000,-660.71282141,0.00035616,7]
[424220701,1780671071000,-660.71282141,0.00035616,7]
[424220713,1780671071000,-660.71282141,0.00035616,7]
[424220711,1780671071000,-660.71282141,0.00035616,7]
[424220712,1780671071000,-660.71282141,0.00035616,7]
[424220697,1780671071000,-660.71282141,0.00035616,7]
[424220698,1780671071000,-660.71282141,0.00035616,7]
[424220700,1780671071000,-660.71282141,0.00035616,7]
[424220699,1780671071000,-660.71282141,0.00035616,7]
[424220728,1780671071000,-645.61081407,0.00035616,7]
[424220709,1780671071000,-660.71282141,0.00035616,7]
[424220726,1780671071000,-645.61081407,0.00035616,7]
[424220742,1780671071000,-645.61081407,0.00035616,7]
[424220733,1780671071000,-645.61081407,0.00035616,7]
[424220737,1780671071000,-645.61081407,0.00035616,7]
[424220759,1780671071000,-512.46,0.00035616,2]
[424220755,1780671071000,-645.61081407,0.00035616,7]
[424220756,1780671071000,-645.61081407,0.00035616,7]
[424220758,1780671071000,-181.79,0.00035616,30]
[424220754,1780671071000,-645.61081407,0.00035616,7]
[424220761,1780671071000,-265.51807353,0.0003565,4]
[424220753,1780671071000,-645.61081407,0.00035616,7]
[424220762,1780671071000,-7781.70158035,0.00035656,2]
[424220751,1780671071000,-645.61081407,0.00035616,7]
[424220752,1780671071000,-645.61081407,0.00035616,7]
[424220749,1780671071000,-645.61081407,0.00035616,7]
[424220750,1780671071000,-645.61081407,0.00035616,7]
[424220748,1780671071000,-645.61081407,0.00035616,7]
[424220745,1780671071000,-645.61081407,0.00035616,7]
[424220760,1780671071000,-1357.52438256,0.00035618,2]
[424220747,1780671071000,-645.61081407,0.00035616,7]
[424220730,1780671071000,-645.61081407,0.00035616,7]
[424220744,1780671071000,-645.61081407,0.00035616,7]
[424220734,1780671071000,-645.61081407,0.00035616,7]
[424220729,1780671071000,-645.61081407,0.00035616,7]
[424220731,1780671071000,-645.61081407,0.00035616,7]
[424220732,1780671071000,-645.61081407,0.00035616,7]
[424220736,1780671071000,-645.61081407,0.00035616,7]
[424220735,1780671071000,-645.61081407,0.00035616,7]
[424220740,1780671071000,-645.61081407,0.00035616,7]
[424220757,1780671071000,-645.61081407,0.00035616,7]
[424220739,1780671071000,-645.61081407,0.00035616,7]
[424220738,1780671071000,-645.61081407,0.00035616,7]
[424220743,1780671071000,-645.61081407,0.00035616,7]
[424220746,1780671071000,-645.61081407,0.00035616,7]
[424220741,1780671071000,-645.61081407,0.00035616,7]
[424220771,1780671072000,-453.07819494,0.00034903,2]
[424220775,1780671072000,-1300.0,0.00035822,60]
[424220773,1780671072000,-499.45,0.000358,30]
[424220774,1780671072000,-614.0,0.00035816,10]
[424220766,1780671072000,-974.52,0.00035709,120]
[424220767,1780671072000,-153.99245409,0.0003575,120]
[424220765,1780671072000,-150.0,0.000357,120]
[424220763,1780671072000,-309.34091965,0.00035656,2]
[424220770,1780671072000,-1571.46008412,0.00035781,2]
[424220768,1780671072000,-150.0,0.00035753,120]
[424220769,1780671072000,-2034.1885,0.00035781,2]
[424220772,1780671072000,-6519.58241588,0.00035781,2]
[424220764,1780671072000,-525.0,0.00035681,11]
[424220776,1780671072000,-644.41,0.00035889,30]
[424220779,1780671072000,-150.0,0.00035899,2]
[424220780,1780671072000,-885.1,0.000359,120]
[424220791,1780671072000,-151.0,0.00035922,14]
[424220790,1780671072000,-150.0,0.00035918,30]
[424220787,1780671072000,-150.0,0.00035918,30]
[424220788,1780671072000,-150.0,0.00035918,30]
[424220786,1780671072000,-150.0,0.00035918,30]
[424220778,1780671072000,-150.0,0.0003589,120]
[424220785,1780671072000,-150.0,0.00035918,30]
[424220783,1780671072000,-8091.0425,0.00035906,2]
[424220781,1780671072000,-208.84,0.000359,98]
[424220792,1780671072000,-57620.79575831,0.00035932,30]
[424220782,1780671072000,-400.0,0.000359,13]
[424220789,1780671072000,-150.0,0.00035918,30]
[424220777,1780671072000,-531.03,0.00035889,30]
[424220784,1780671072000,-150.0,0.00035918,30]
[424220793,1780671073000,-1485.0,0.00035932,30]
[424220794,1780671073000,-15566.48270966,0.00035932,30]
[424220796,1780671073000,-2514.27985401,0.00018121,2]
[424220795,1780671073000,-450.0,0.00018121,2]
[424220801,1780671073000,-2644.19099327,0.00027397,10]
[424220799,1780671073000,-577.0,0.000267,5]
[424220798,1780671073000,-6072.0,0.00021121,2]
[424220800,1780671073000,-18077.21149213,0.00027397,10]
[424220797,1780671073000,-3107.72014599,0.00018121,2]
[424220804,1780671159000,-1091.57967142,0.00010407,2]
[424220807,1780671330000,-254.82013685,0.00010407,2]
[424220809,1780671385000,200.0,0.00030136,120]
[424220808,1780671385000,-160.0,0.00010429,2]
[424220810,1780671408000,260.0,0.0003013,120]
[424220811,1780671412000,-500.0,0.00010593,2]
[424220813,1780671412000,-197.07004268,0.00010593,2]
[424220812,1780671412000,-199.30286012,0.00010593,2]
[424220818,1780671412000,-4594.56421804,0.00010594,2]
[424220815,1780671412000,-151.16610051,0.00010593,2]
[424220817,1780671412000,-193.38858313,0.00010593,2]
[424220816,1780671412000,-304.47638696,0.00010593,2]
[424220814,1780671412000,-584.03180856,0.00010593,2]
[424220819,1780671438000,-5836.58686764,0.00010594,2]
[424220820,1780671456000,-236.32105685,0.00010594,2]
[424220821,1780671457000,-250.0,0.00010694,2]
[424220823,1780671457000,-500.0,0.00010959,2]
[424220825,1780671457000,-929.23808833,0.00010959,2]
[424220824,1780671457000,-500.0,0.00010959,2]
[424220822,1780671457000,-500.0,0.00010959,2]
[424220826,1780671464000,-150.0,0.00011255,2]
[424220827,1780671464000,-250.0,0.00011291,2]
[424220828,1780671464000,-45.76191167,0.00011471,2]
[424220829,1780671507000,-500.0,0.00010959,2]
[424220833,1780671509000,-500.0,0.00011507,2]
[424220832,1780671509000,-500.0,0.00011507,2]
[424220831,1780671509000,-250.0,0.00011489,2]
[424220830,1780671509000,-204.23808833,0.00011471,2]
[424220834,1780671510000,-500.0,0.00011507,2]
[424220835,1780671510000,-160.0,0.00011507,2]
[424220836,1780671510000,-756.57846353,0.00011653,2]
[424220837,1780671510000,-169.43661831,0.00011847,2]
[424220840,1780671510000,-500.0,0.00012055,2]
[424220841,1780671510000,-500.0,0.00012055,2]
[424220839,1780671510000,-1200.0,0.00012054,2]
[424220843,1780671510000,-215.77576141,0.00012301,2]
[424220842,1780671510000,-500.0,0.00012055,2]
[424220844,1780671510000,-1052.26106842,0.00012322,2]
[424220838,1780671510000,-191.71,0.00012017,2]
[424220848,1780671556000,-258.822266,0.00012321,2]
[424220845,1780671556000,-150.0,0.00011648,2]
[424220847,1780671556000,-500.0,0.00012123,2]
[424220846,1780671556000,-250.0,0.00011885,2]
[424220849,1780671556000,-500.0,0.00012321,2]
[424220854,1780671556000,-2500.0,0.00012547,2]
[424220850,1780671556000,-2947.73893158,0.00012322,2]
[424220852,1780671556000,-400.0,0.000125,4]
[424220855,1780671556000,-2048.84723025,0.00012547,2]
[424220851,1780671556000,-189.59157217,0.00012447,2]
[424220853,1780671556000,-200.0,0.000125,4]
[424220856,1780671598000,-4768.48816975,0.00012547,2]
[424220857,1780671600000,4178.2982,0.00012547,2]
[424220859,1780671602000,500.0,0.00011648,2]
[424220858,1780671602000,500.0,0.00011648,2]
[424220860,1780671603000,262.48146197,0.00011648,2]
[424220861,1780671611000,150.0,0.00012207,2]
[424220862,1780671612000,2182.73216828,0.00012547,2]
[424220870,1780671881000,-592.42969906,0.00011749,2]
[424220872,1780671978000,180.04667535,0.0001095,7]
[424220873,1780672055000,-300.0,0.00010889,2]
[424220874,1780672055000,-162.0,0.00010889,2]
[424220875,1780672055000,-4.40506352,0.00010889,2]
[424220881,1780672056000,154.98,0.0001085,2]
[424220882,1780672056000,250.37775007,0.0001085,2]
[424220883,1780672056000,-154.98,0.0001085,2]
[424220880,1780672056000,154.98,0.0001085,2]
[424220879,1780672056000,250.37775007,0.0001085,2]
[424220878,1780672056000,164.21700973,0.0001085,2]
[424220877,1780672056000,234.78102253,0.0001085,2]
[424220876,1780672056000,151.99734491,0.0001085,2]
[424220885,1780672057000,-156.4034983,0.0001085,2]
[424220884,1780672057000,-181.67269453,0.0001085,2]
[424220922,1780672153000,1487.43,0.00030082,120]
[424221039,1780672232000,-256.91949921,0.0001095,2]
[424221034,1780672232000,-500.0,0.00010949,2]
[424221035,1780672232000,-208.54364683,0.00010949,2]
[424221032,1780672232000,-499.87515781,0.00010793,2]
[424221037,1780672232000,-348.8583029,0.00010949,2]
[424221043,1780672232000,-500.0,0.00010959,2]
[424221036,1780672232000,-500.0,0.00010949,2]
[424221038,1780672232000,-318.01877119,0.0001095,2]
[424221053,1780672232000,-6368.91585677,0.00011169,2]
[424221033,1780672232000,-5319.78224037,0.0001085,2]
[424221057,1780672232000,-9999.99,0.00011169,2]
[424221040,1780672232000,-442.03114154,0.0001095,2]
[424221042,1780672232000,-500.0,0.00010959,2]
[424221025,1780672232000,-82.70247496,0.00010793,2]
[424221041,1780672232000,-500.0,0.00010959,2]
[424221031,1780672232000,-500.0,0.00010793,2]
[424221044,1780672232000,-3270.19,0.00011149,2]
[424221026,1780672232000,-300.0,0.00010793,2]
[424221028,1780672232000,-500.0,0.00010793,2]
[424221027,1780672232000,-229.06899864,0.00010793,2]
[424221029,1780672232000,-500.0,0.00010793,2]
[424221024,1780672232000,-674.06681493,0.00010793,2]
[424221021,1780672232000,-250.0,0.00010786,2]
[424221023,1780672232000,-380.68182096,0.00010793,2]
[424221020,1780672232000,-619.54044535,0.00010779,2]
[424221022,1780672232000,-62.54888915,0.00010793,2]
[424221030,1780672232000,-500.0,0.00010793,2]
[424221051,1780672232000,-150.99,0.00011169,2]